fUST/lending_fUST_20250101
["ID","MTS","AMOUNT","RATE_DAILY","PERIOD"]
[347290322,1735661440844,-500.0,0.00019452,3]
[347290323,1735661440853,-500.0,0.00019452,3]
[347290324,1735661440863,-500.0,0.00019452,3]
[347290325,1735661440872,-500.0,0.00019452,3]
[347290326,1735661440882,-500.0,0.00019452,3]
[347290327,1735661440893,-1430.72,0.00019452,3]
[347290328,1735661440902,-500.0,0.00019452,3]
[347290330,1735661440911,-500.0,0.00019452,3]
[347290331,1735661440920,-500.0,0.00019452,3]
[347290332,1735661440929,-500.0,0.00019452,3]
[347290334,1735661440939,-500.0,0.00019452,3]
[347290335,1735661440948,-500.0,0.00019452,3]
[347290336,1735661440958,-1059.06,0.00019452,3]
[347290337,1735661440967,-502.72180977,0.00019452,3]
[347290338,1735661440976,-733.67,0.00019452,3]
[347290339,1735661440986,-500.0,0.00019452,3]
[347290340,1735661440997,-500.0,0.00019452,3]
[347290341,1735661441007,-500.0,0.00019452,3]
[347290342,1735661441017,-500.0,0.00019452,3]
[347290343,1735661441028,-500.0,0.00019452,3]
[347290344,1735661441117,-500.0,0.00019452,3]
[347290345,1735661441136,-501.7867184,0.00019452,3]
[347290346,1735661441146,-1068.93,0.00019452,3]
[347290347,1735661441156,-505.44595733,0.00019452,3]
[347290348,1735661441166,-508.17473834,0.00019452,3]
[347290349,1735661441176,-457.96000079,0.00019452,3]
[347290350,1735661441186,-500.0,0.00019452,3]
[347290351,1735661441196,-501.70537176,0.00019452,3]
[347290352,1735661441205,-502.18242219,0.00019452,3]
[347290353,1735661441215,-500.0,0.00019452,3]
[347290354,1735661441224,-500.0,0.00019452,3]
[347290355,1735661441233,-801.16,0.00019452,3]
[347290356,1735661441242,-745.16,0.00019452,3]
[347290357,1735661441252,-500.0,0.00019452,3]
[347290358,1735661441261,-507.82719722,0.00019452,3]
[347290359,1735661441270,-825.35,0.00019452,3]
[347290360,1735661441281,-500.0,0.00019452,3]
[347290361,1735661441290,-500.0,0.00019452,3]
[347290362,1735661441299,-1680.25,0.00019452,3]
[347290363,1735661441309,-521.1366108,0.00019452,3]
[347290364,1735661441318,-500.0,0.00019452,3]
[347290365,1735661441327,-13107.39,0.00019452,3]
[347290366,1735661441337,-511.48054078,0.00019452,3]
[347290367,1735661441346,-503.72827581,0.00019452,3]
[347290368,1735661441355,-500.0,0.00019452,3]
[347290369,1735661441365,-500.0,0.00019452,3]
[347290370,1735661441377,-500.0,0.00019452,3]
[347290371,1735661441386,-500.0,0.00019452,3]
[347290372,1735661441395,-500.0,0.00019452,3]
[347290373,1735661441404,-500.0,0.00019452,3]
[347290374,1735661441415,-500.0,0.00019452,3]
[347290375,1735661441424,-2067.16,0.00019452,3]
[347290376,1735661441434,-500.0,0.00019452,3]
[347290377,1735661441444,-765.46,0.00019452,3]
[347290378,1735661441453,-500.0,0.00019452,3]
[347290379,1735661441462,-324.75846547,0.00019452,3]
[347290380,1735661441471,-500.0,0.00019452,3]
[347290381,1735661441481,-1214.61,0.00019452,3]
[347290382,1735661441490,-500.0,0.00019452,3]
[347290383,1735661441499,-477.70179264,0.00019452,3]
[347290384,1735661441508,-500.0,0.00019452,3]
[347290385,1735661441517,-500.0,0.00019452,3]
[347290386,1735661441527,-500.0,0.00019452,3]
[347290387,1735661441536,-500.0,0.00019452,3]
[347290388,1735661441545,-504.67869026,0.00019452,3]
[347290389,1735661441555,-500.0,0.00019452,3]
[347290390,1735661441564,-500.0,0.00019452,3]
[347290391,1735661441574,-1284.84,0.00019452,3]
[347290392,1735661441584,-500.0,0.00019452,3]
[347290393,1735661441594,-505.36151024,0.00019452,3]
[347290394,1735661441604,-1220.53,0.00019452,3]
[347290395,1735661441614,-500.0,0.00019452,3]
[347290396,1735661441625,-500.0,0.00019452,3]
[347290397,1735661441634,-1365.0,0.00019452,3]
[347290398,1735661441643,-500.0,0.00019452,3]
[347290399,1735661441652,-500.0,0.00019452,3]
[347290400,1735661441662,-500.0,0.00019452,3]
[347290401,1735661441671,-504.54930697,0.00019452,3]
[347290402,1735661441680,-500.0,0.00019452,3]
[347290403,1735661441689,-1266.33,0.00019452,3]
[347290404,1735661441699,-500.0,0.00019452,3]
[347290405,1735661441708,-1109.65,0.00019452,3]
[347290406,1735661441717,-500.0,0.00019452,3]
[347290407,1735661441726,-500.0,0.00019452,3]
[347290408,1735661441735,-500.0,0.00019452,3]
[347290409,1735661441744,-500.0,0.00019452,3]
[347290410,1735661441754,-1178.99,0.00019452,3]
[347290411,1735661441766,-1108.09,0.00019452,3]
[347290412,1735661441781,-847.98,0.00019452,3]
[347290413,1735661441799,-500.0,0.00019452,3]
[347290414,1735661441818,-500.0,0.00019452,3]
[347290415,1735661441828,-500.0,0.00019452,3]
[347290416,1735661441837,-500.0,0.00019452,3]
[347290417,1735661441847,-1048.17,0.00019452,3]
[347290418,1735661441857,-507.16255691,0.00019452,3]
[347290419,1735661441866,-500.0,0.00019452,3]
[347290420,1735661441876,-504.24198776,0.00019452,3]
[347290421,1735661441885,-500.0,0.00019452,3]
[347290422,1735661441895,-500.0,0.00019452,3]
[347290423,1735661441905,-500.0,0.00019452,3]
[347290424,1735661441914,-1927.77,0.00019452,3]
[347290425,1735661441923,-500.0,0.00019452,3]
[347290426,1735661441932,-500.0,0.00019452,3]
[347290427,1735661441941,-617.20919723,0.00019452,3]
[347290428,1735661441951,-500.0,0.00019452,3]
[347290429,1735661441960,-500.0,0.00019452,3]
[347290430,1735661441969,-1024.64,0.00019452,3]
[347290431,1735661441978,-500.0,0.00019452,3]
[347290432,1735661441987,-500.0,0.00019452,3]
[347290433,1735661441997,-500.0,0.00019452,3]
[347290434,1735661442007,-504.52908943,0.00019452,3]
[347290435,1735661442016,-500.0,0.00019452,3]
[347290436,1735661442027,-500.0,0.00019452,3]
[347290437,1735661442037,-500.0,0.00019452,3]
[347290438,1735661442046,-500.0,0.00019452,3]
[347290439,1735661442057,-500.0,0.00019452,3]
[347290440,1735661442067,-500.0,0.00019452,3]
[347290441,1735661442077,-500.0,0.00019452,3]
[347290442,1735661442086,-500.0,0.00019452,3]
[347290443,1735661442096,-500.0,0.00019452,3]
[347290444,1735661442105,-500.0,0.00019452,3]
[347290445,1735661442114,-500.0,0.00019452,3]
[347290446,1735661442124,-4519.05,0.00019452,3]
[347290447,1735661442133,-500.0,0.00019452,3]
[347290448,1735661442143,-8021.16,0.00019452,3]
[347290449,1735661442152,-500.0,0.00019452,3]
[347290450,1735661442161,-1145.51,0.00019452,3]
[347290451,1735661442170,-500.0,0.00019452,3]
[347290452,1735661442179,-500.0,0.00019452,3]
[347290453,1735661442189,-1136.29,0.00019452,3]
[347290454,1735661442198,-500.0,0.00019452,3]
[347290455,1735661442207,-65013.37,0.00019452,3]
[347290456,1735661442216,-500.85173509,0.00019452,3]
[347290457,1735661442225,-1121.29,0.00019452,3]
[347290458,1735661442234,-500.0,0.00019452,3]
[347290459,1735661442243,-500.0,0.00019452,3]
[347290460,1735661442252,-500.0,0.00019452,3]
[347290461,1735661442262,-1968.63,0.00019452,3]
[347290462,1735661442271,-500.0,0.00019452,3]
[347290463,1735661442284,-500.0,0.00019452,3]
[347290464,1735661442298,-809.68,0.00019452,3]
[347290465,1735661442307,-503.33978516,0.00019452,3]
[347290466,1735661442316,-500.0,0.00019452,3]
[347290467,1735661442325,-500.0,0.00019452,3]
[347290468,1735661442334,-500.0,0.00019452,3]
[347290469,1735661442344,-500.0,0.00019452,3]
[347290470,1735661442352,-1550.4,0.00019452,3]
[347290471,1735661442362,-500.0,0.00019452,3]
[347290472,1735661442374,-500.0,0.00019452,3]
[347290473,1735661442384,-500.0,0.00019452,3]
[347290474,1735661442393,-500.0,0.00019452,3]
[347290475,1735661442403,-500.0,0.00019452,3]
[347290476,1735661442413,-500.0,0.00019452,3]
[347290477,1735661442422,-530.4,0.00019452,3]
[347290478,1735661442431,-2158.66,0.00019452,3]
[347290479,1735661442440,-523.02566664,0.00019452,3]
[347290480,1735661442450,-1473.63,0.00019452,3]
[347290481,1735661442459,-500.0,0.00019452,3]
[347290482,1735661442468,-500.0,0.00019452,3]
[347290483,1735661442478,-500.0,0.00019452,3]
[347290484,1735661442487,-573.83,0.00019452,3]
[347290485,1735661442496,-2655.97,0.00019452,3]
[347290486,1735661442505,-500.0,0.00019452,3]
[347290487,1735661442514,-3950.74,0.00019452,3]
[347290488,1735661442523,-500.0,0.00019452,3]
[347290489,1735661442537,-616.04,0.00019452,3]
[347290490,1735661442547,-508.30844112,0.00019452,3]
[347290491,1735661442555,-1347.08,0.00019452,3]
[347290492,1735661442564,-582.04,0.00019452,3]
[347290493,1735661442573,-500.0,0.00019452,3]
[347290494,1735661442582,-500.0,0.00019452,3]
[347290495,1735661442592,-2679.18,0.00019452,3]
[347290496,1735661442601,-500.0,0.00019452,3]
[347290497,1735661442610,-500.0,0.00019452,3]
[347290498,1735661442620,-501.35,0.00019452,3]
[347290499,1735661442629,-2250.33,0.00019452,3]
[347290500,1735661442638,-500.0,0.00019452,3]
[347290501,1735661442728,-499.0,0.00019452,3]
[347290502,1735661442738,-268.74473366,0.00019452,3]
[347290503,1735661442747,-500.0,0.00019452,3]
[347290504,1735661442756,-7998.46,0.00019452,3]
[347290505,1735661442766,-500.0,0.00019452,3]
[347290506,1735661442777,-4164.95,0.00019452,3]
[347290507,1735661442787,-500.0,0.00019452,3]
[347290508,1735661442796,-500.0,0.00019452,3]
[347290509,1735661442806,-500.0,0.00019452,3]
[347290510,1735661442815,-978.68,0.00019452,3]
[347290511,1735661442824,-1300.52,0.00019452,3]
[347290512,1735661442834,-2905.11957048,0.00019452,3]
[347290513,1735661443058,-500.0,0.00019178,2]
[347290514,1735661443067,-2601.84042952,0.00019452,3]
[347290515,1735661443077,-500.0,0.00019452,3]
[347290516,1735661443086,-214.72900225,0.00019452,3]
[347290517,1735661443095,-523.95445657,0.00019452,3]
[347290518,1735661443104,-501.82913076,0.00019452,3]
[347290519,1735661443113,-500.0,0.00019452,3]
[347290520,1735661443122,-500.0,0.00019452,3]
[347290521,1735661443131,-500.0,0.00019452,3]
[347290522,1735661443140,-1292.21,0.00019452,3]
[347290525,1735661443149,-500.0,0.00019452,3]
[347290528,1735661443158,-442.9865349,0.00019452,3]
[347290530,1735661443167,-2677.01,0.00019452,3]
[347290531,1735661443176,-500.0,0.00019452,3]
[347290532,1735661443185,-683.72,0.00019452,3]
[347290534,1735661443195,-994.67,0.00019452,3]
[347290536,1735661443204,-958.890446,0.00019452,3]
[347290545,1735661443916,-500.0,0.00019178,2]
[347290546,1735661443926,-500.0,0.00019178,2]
[347290547,1735661443935,-500.0,0.00019178,2]
[347290548,1735661443945,-547.689554,0.00019452,3]
[347290549,1735661443954,-500.0,0.00019452,3]
[347290550,1735661443963,-514.36354303,0.00019452,3]
[347290551,1735661443973,-500.0,0.00019452,3]
[347290552,1735661443982,-500.0,0.00019452,3]
[347290553,1735661443991,-1841.0,0.00019452,3]
[347290554,1735661444000,-1014.84,0.00019452,3]
[347290555,1735661444010,-802.05,0.00019452,3]
[347290556,1735661444019,-511.14841742,0.00019452,3]
[347290557,1735661444031,-2385.64,0.00019452,3]
[347290558,1735661444040,-500.0,0.00019452,3]
[347290559,1735661444050,-1385.29,0.00019452,3]
[347290560,1735661444059,-500.0,0.00019452,3]
[347290561,1735661444069,-500.0,0.00019452,3]
[347290562,1735661444078,-500.0,0.00019452,3]
[347290563,1735661444088,-10056.02485154,0.00019464,2]
[347290564,1735661444097,-500.0,0.00019473,2]
[347290565,1735661444107,-633.64993133,0.00019473,2]
[347290566,1735661444116,-841.7729983,0.00019528,2]
[347290567,1735661444126,-450.31665735,0.00019608,2]
[347290568,1735661444135,-4360.96982139,0.00019626,2]
[347290569,1735661444145,-500.0,0.00019721,2]
[347290570,1735661444154,-1000.0,0.00019721,2]
[347290571,1735661444163,-1017.74143387,0.00019721,2]
[347290572,1735661444173,-151.0,0.00019725,2]
[347290573,1735661444183,-367.13289386,0.00019726,3]
[347290574,1735661444193,-500.0,0.00019726,3]
[347290575,1735661444202,-500.0,0.00019726,3]
[347290576,1735661444211,-500.0,0.00019726,3]
[347290577,1735661444220,-500.0,0.00019726,3]
[347290578,1735661444230,-500.0,0.00019726,3]
[347290579,1735661444240,-500.0,0.00019726,3]
[347290580,1735661444249,-500.0,0.00019726,3]
[347290581,1735661444259,-615.29218176,0.00019726,3]
[347290582,1735661444268,-500.0,0.00019726,3]
[347290583,1735661444278,-500.0,0.00019726,3]
[347290584,1735661444288,-674.34,0.00019726,3]
[347290585,1735661444298,-851.68,0.00019726,3]
[347290586,1735661444307,-500.0,0.00019726,3]
[347290587,1735661444316,-500.0,0.00019726,3]
[347290588,1735661444326,-500.0,0.00019726,3]
[347290589,1735661444335,-523.39631234,0.00019726,3]
[347290590,1735661444345,-508.03540037,0.00019726,3]
[347290591,1735661444355,-500.0,0.00019726,3]
[347290592,1735661444366,-509.87989725,0.00019726,3]
[347290593,1735661444381,-500.0,0.00019726,3]
[347290594,1735661444391,-500.0,0.00019726,3]
[347290595,1735661444400,-500.0,0.00019726,3]
[347290596,1735661444410,-500.0,0.00019726,3]
[347290597,1735661444421,-505.05176116,0.00019726,3]
[347290598,1735661444430,-500.0,0.00019726,3]
[347290599,1735661444439,-500.0,0.00019726,3]
[347290600,1735661444449,-505.73388249,0.00019726,3]
[347290601,1735661444459,-500.0,0.00019726,3]
[347290602,1735661444468,-500.0,0.00019726,3]
[347290603,1735661444478,-500.0,0.00019726,3]
[347290604,1735661444487,-500.0,0.00019726,3]
[347290605,1735661444496,-500.0,0.00019726,3]
[347290606,1735661444506,-500.0,0.00019726,3]
[347290607,1735661444516,-656.65,0.00019726,3]
[347290608,1735661444525,-500.0,0.00019726,3]
[347290609,1735661444536,-500.0,0.00019726,3]
[347290610,1735661444545,-587.82,0.00019726,3]
[347290611,1735661444554,-200.32926924,0.00019726,3]
[347290612,1735661444563,-500.0,0.00019726,3]
[347290613,1735661444573,-517.53,0.00019726,3]
[347290614,1735661444582,-500.0,0.00019726,3]
[347290615,1735661444591,-500.0,0.00019726,3]
[347290616,1735661444601,-530.5270834,0.00019726,3]
[347290617,1735661444610,-500.0,0.00019726,3]
[347290618,1735661444619,-642.99,0.00019726,3]
[347290619,1735661444629,-500.0,0.00019726,3]
[347290620,1735661444639,-500.0,0.00019726,3]
[347290621,1735661444649,-500.0,0.00019726,3]
[347290622,1735661444658,-1034.12,0.00019726,3]
[347290623,1735661444668,-500.0,0.00019726,3]
[347290624,1735661444678,-500.0,0.00019726,3]
[347290625,1735661444688,-500.0,0.00019726,3]
[347290626,1735661444697,-504.32364105,0.00019726,3]
[347290627,1735661444707,-500.0,0.00019726,3]
[347290628,1735661444716,-500.0,0.00019726,3]
[347290629,1735661444725,-500.0,0.00019726,3]
[347290630,1735661444735,-500.0,0.00019726,3]
[347290631,1735661444744,-500.0,0.00019726,3]
[347290632,1735661444754,-500.0,0.00019726,3]
[347290633,1735661444764,-500.0,0.00019726,3]
[347290634,1735661444773,-500.0,0.00019726,3]
[347290635,1735661444784,-500.0,0.00019726,3]
[347290636,1735661444793,-646.93,0.00019726,3]
[347290637,1735661444802,-500.0,0.00019726,3]
[347290638,1735661444812,-1221.1,0.00019726,3]
[347290639,1735661444822,-500.0,0.00019726,3]
[347290640,1735661444831,-507.36927411,0.00019726,3]
[347290641,1735661444841,-500.0,0.00019726,3]
[347290642,1735661444851,-617.48,0.00019726,3]
[347290643,1735661444860,-500.0,0.00019726,3]
[347290644,1735661444869,-500.0,0.00019726,3]
[347290645,1735661444879,-500.0,0.00019726,3]
[347290646,1735661444889,-500.0,0.00019726,3]
[347290647,1735661444899,-500.0,0.00019726,3]
[347290648,1735661444908,-500.0,0.00019726,3]
[347290649,1735661444917,-500.0,0.00019726,3]
[347290650,1735661444927,-500.0,0.00019726,3]
[347290651,1735661444937,-500.0,0.00019726,3]
[347290652,1735661444947,-1114.5,0.00019726,3]
[347290653,1735661444956,-458.60765334,0.00019726,3]
[347290654,1735661444966,-500.0,0.00019726,3]
[347290655,1735661444975,-472.28944458,0.00019726,3]
[347290656,1735661444984,-500.0,0.00019726,3]
[347290657,1735661444994,-500.0,0.00019726,3]
[347290658,1735661445004,-500.0,0.00019726,3]
[347290659,1735661445013,-500.0,0.00019726,3]
[347290660,1735661445023,-500.0,0.00019726,3]
[347290661,1735661445036,-500.0,0.00019726,3]
[347290662,1735661445047,-500.0,0.00019726,3]
[347290663,1735661445057,-500.0,0.00019726,3]
[347290664,1735661445067,-500.0,0.00019726,3]
[347290665,1735661445077,-569.91,0.00019726,3]
[347290666,1735661445087,-1068.13,0.00019726,3]
[347290667,1735661445096,-500.0,0.00019726,3]
[347290668,1735661445105,-500.0,0.00019726,3]
[347290669,1735661445115,-500.0,0.00019726,3]
[347290670,1735661445125,-505.72964191,0.00019726,3]
[347290671,1735661445134,-500.0,0.00019726,3]
[347290672,1735661445144,-502.51267261,0.00019726,3]
[347290673,1735661445153,-602.49,0.00019726,3]
[347290674,1735661445163,-388.81856354,0.00019726,3]
[347290675,1735661445172,-500.0,0.00019726,3]
[347290676,1735661445182,-500.0,0.00019726,3]
[347290677,1735661445192,-500.0,0.00019726,3]
[347290678,1735661445283,-500.0,0.00019726,3]
[347290679,1735661445293,-500.0,0.00019726,3]
[347290680,1735661445303,-2228.93,0.00019726,3]
[347290681,1735661445312,-500.0,0.00019726,3]
[347290682,1735661445322,-502.48748472,0.00019726,3]
[347290683,1735661445331,-500.0,0.00019726,3]
[347290684,1735661445340,-500.0,0.00019726,3]
[347290685,1735661445350,-532.25,0.00019726,3]
[347290686,1735661445359,-500.0,0.00019726,3]
[347290687,1735661445370,-1199.79,0.00019726,3]
[347290688,1735661445381,-500.0,0.00019726,3]
[347290689,1735661445391,-500.0,0.00019726,3]
[347290690,1735661445400,-500.0,0.00019726,3]
[347290691,1735661445411,-500.0,0.00019726,3]
[347290692,1735661445420,-500.0,0.00019726,3]
[347290693,1735661445429,-227.09888189,0.00019726,3]
[347290694,1735661445439,-547.51,0.00019726,3]
[347290695,1735661445451,-500.0,0.00019726,3]
[347290696,1735661445461,-349.32524595,0.00019726,3]
[347290697,1735661445471,-551.21,0.00019726,3]
[347290698,1735661445481,-740.05,0.00019726,3]
[347290699,1735661445491,-504.71921326,0.00019726,3]
[347290700,1735661445501,-500.0,0.00019726,3]
[347290701,1735661445510,-500.0,0.00019726,3]
[347290702,1735661445519,-500.0,0.00019726,3]
[347290703,1735661445529,-500.0,0.00019726,3]
[347290704,1735661445539,-500.0,0.00019726,3]
[347290705,1735661445548,-500.0,0.00019726,3]
[347290706,1735661445558,-500.0,0.00019726,3]
[347290707,1735661445567,-1229.43,0.00019726,3]
[347290708,1735661445577,-500.0,0.00019726,3]
[347290709,1735661445586,-500.0,0.00019726,3]
[347290710,1735661445596,-500.0,0.00019726,3]
[347290711,1735661445606,-500.0,0.00019726,3]
[347290712,1735661445615,-549.0,0.00019726,3]
[347290713,1735661445625,-364.80789889,0.00019726,3]
[347290714,1735661445634,-158.07068626,0.00019726,3]
[347290715,1735661445644,-500.0,0.00019726,3]
[347290716,1735661445653,-500.0,0.00019726,3]
[347290717,1735661445663,-500.0,0.00019726,3]
[347290718,1735661445672,-586.5,0.00019726,3]
[347290719,1735661445681,-500.0,0.00019726,3]
[347290720,1735661445691,-500.0,0.00019726,3]
[347290721,1735661445700,-500.0,0.00019726,3]
[347290722,1735661445710,-745.96,0.00019726,3]
[347290723,1735661445719,-202.38088462,0.00019726,3]
[347290724,1735661445728,-500.0,0.00019726,3]
[347290725,1735661445737,-500.0,0.00019726,3]
[347290726,1735661445746,-500.0,0.00019726,3]
[347290727,1735661445756,-500.0,0.00019726,3]
[347290728,1735661445765,-822.43,0.00019726,3]
[347290729,1735661445775,-500.0,0.00019726,3]
[347290730,1735661445785,-861.4,0.00019726,3]
[347290731,1735661445795,-522.54,0.00019726,3]
[347290732,1735661445805,-669.67,0.00019726,3]
[347290733,1735661445814,-500.0,0.00019726,3]
[347290734,1735661445824,-505.90057879,0.00019726,3]
[347290735,1735661445834,-730.3,0.00019726,2]
[347290736,1735661445844,-500.0,0.00019726,2]
[347290737,1735661445854,-834.47,0.00019726,3]
[347290738,1735661445864,-500.0,0.00019726,3]
[347290739,1735661445873,-500.0,0.00019726,3]
[347290740,1735661445882,-500.0,0.00019726,3]
[347290741,1735661445893,-583.25,0.00019726,3]
[347290742,1735661445902,-500.0,0.00019726,3]
[347290743,1735661445911,-500.0,0.00019726,3]
[347290744,1735661445920,-500.0,0.00019726,3]
[347290745,1735661445930,-341.32521284,0.00019726,3]
[347290746,1735661445939,-501.74077293,0.00019726,3]
[347290747,1735661445949,-500.0,0.00019726,3]
[347290748,1735661445958,-264.68147103,0.00019726,3]
[347290749,1735661445968,-500.0,0.00019726,3]
[347290750,1735661445977,-500.0,0.00019726,3]
[347290751,1735661445987,-500.0,0.00019726,3]
[347290752,1735661445996,-500.0,0.00019726,3]
[347290753,1735661446006,-12341.27,0.00019726,3]
[347290754,1735661446016,-508.5357392,0.00019726,3]
[347290755,1735661446027,-500.0,0.00019726,3]
[347290756,1735661446037,-1287.03,0.00019726,3]
[347290757,1735661446046,-500.0,0.00019726,3]
[347290758,1735661446056,-515.31405967,0.00019726,3]
[347290760,1735661446067,-500.0,0.00019726,3]
[347290762,1735661446076,-500.0,0.00019726,3]
[347290763,1735661446086,-500.0,0.00019726,3]
[347290764,1735661446095,-500.0,0.00019726,3]
[347290765,1735661446104,-500.0,0.00019726,3]
[347290766,1735661446114,-844.66,0.00019726,3]
[347290767,1735661446123,-500.0,0.00019726,3]
[347290769,1735661446133,-625.0,0.00019726,3]
[347290770,1735661446143,-624.39828362,0.00019726,3]
[347290771,1735661446152,-500.0,0.00019726,3]
[347290772,1735661446162,-500.0,0.00019726,3]
[347290773,1735661446171,-500.0,0.00019726,3]
[347290774,1735661446182,-500.0,0.00019726,3]
[347290775,1735661446192,-500.0,0.00019726,3]
[347290776,1735661446201,-637.4,0.00019726,3]
[347290777,1735661446211,-500.0,0.00019726,3]
[347290778,1735661446220,-500.0,0.00019726,3]
[347290779,1735661446230,-500.0,0.00019726,3]
[347290780,1735661446239,-500.0,0.00019726,3]
[347290781,1735661446249,-500.0,0.00019726,3]
[347290782,1735661446258,-500.0,0.00019726,3]
[347290783,1735661446268,-500.0,0.00019726,3]
[347290784,1735661446278,-500.0,0.00019726,3]
[347290785,1735661446288,-500.0,0.00019726,3]
[347290786,1735661446297,-504.84617504,0.00019726,3]
[347290787,1735661446306,-500.0,0.00019726,3]
[347290788,1735661446317,-500.0,0.00019726,3]
[347290789,1735661446326,-500.0,0.00019726,3]
[347290790,1735661446336,-500.0,0.00019726,3]
[347290791,1735661446346,-508.93819767,0.00019726,3]
[347290793,1735661446355,-500.0,0.00019726,3]
[347290795,1735661446365,-500.0,0.00019726,3]
[347290797,1735661446378,-500.0,0.00019726,3]
[347290798,1735661446387,-500.0,0.00019726,3]
[347290799,1735661446395,-1430.72,0.00019726,3]
[347290800,1735661446405,-500.0,0.00019726,3]
[347290801,1735661446415,-500.0,0.00019726,3]
[347290802,1735661446423,-500.0,0.00019726,3]
[347290803,1735661446432,-620.32613576,0.00019726,3]
[347290804,1735661446443,-500.0,0.00019726,3]
[347290806,1735661446454,-1059.06,0.00019726,3]
[347290808,1735661446463,-733.67,0.00019726,3]
[347290809,1735661446472,-500.0,0.00019726,3]
[347290811,1735661446553,-500.0,0.00019726,3]
[347290812,1735661446563,-500.0,0.00019726,3]
[347290813,1735661446572,-520.50189285,0.00019726,3]
[347290814,1735661446582,-501.97774642,0.00019726,3]
[347290815,1735661446591,-500.0,0.00019726,3]
[347290816,1735661446600,-1068.93,0.00019726,3]
[347290818,1735661446610,-500.0,0.00019726,3]
[347290819,1735661446619,-500.0,0.00019726,3]
[347290820,1735661446628,-500.0,0.00019726,3]
[347290821,1735661446638,-801.16,0.00019726,3]
[347290822,1735661446647,-500.0,0.00019726,3]
[347290823,1735661446656,-745.16,0.00019726,3]
[347290824,1735661446665,-825.35,0.00019726,3]
[347290825,1735661446674,-307.47656864,0.00019726,3]
[347290826,1735661446684,-500.0,0.00019726,3]
[347290827,1735661446694,-1680.25,0.00019726,3]
[347290828,1735661446704,-500.0,0.00019726,3]
[347290829,1735661446713,-13107.39,0.00019726,3]
[347290830,1735661446723,-500.0,0.00019726,3]
[347290831,1735661446733,-500.0,0.00019726,3]
[347290832,1735661446743,-500.0,0.00019726,3]
[347290833,1735661446753,-500.0,0.00019726,3]
[347290834,1735661446763,-500.0,0.00019726,3]
[347290835,1735661446773,-500.0,0.00019726,3]
[347290836,1735661446783,-423.17467954,0.00019726,3]
[347290837,1735661446792,-2067.16,0.00019726,3]
[347290838,1735661446802,-500.0,0.00019726,3]
[347290839,1735661446811,-765.46,0.00019726,3]
[347290840,1735661446821,-500.0,0.00019726,3]
[347290841,1735661446831,-500.0,0.00019726,3]
[347290842,1735661446840,-1214.61,0.00019726,3]
[347290843,1735661446849,-500.0,0.00019726,3]
[347290844,1735661446859,-500.0,0.00019726,3]
[347290846,1735661446869,-500.0,0.00019726,3]
[347290847,1735661446878,-500.0,0.00019726,3]
[347290848,1735661446888,-500.0,0.00019726,3]
[347290849,1735661446897,-500.0,0.00019726,3]